bitfinex-derivatives/quotes_SOLF0:USTF0_20240816
["timestamp","ask_amount","ask_price","bid_price","bid_amount"]
[1723823128826,6.33050949,137.81,137.79,0.05527595]
[1723823129427,5.58787362,137.8,137.79,0.05527595]
[1723823130423,6.33050949,137.81,137.79,0.05527595]
[1723823130627,5.58616397,137.8,137.79,0.05527595]
[1723823131533,6.33050949,137.81,137.79,0.05527595]
[1723823132028,6.33050949,137.81,137.79,43.62527595]
[1723823132334,0.05050949,137.81,137.8,3.6275]
[1723823132628,6.28,137.87,137.8,3.6275]
[1723823132830,9.21913062,137.86,137.81,43.57]
[1723823133025,5.5927323,137.85,137.81,43.57]
[1723823133225,3.62639832,137.86,137.81,43.57]
[1723823133426,5.59152206,137.85,137.79,43.57]
[1723823133633,5.59152206,137.84,137.82,0.0493328]
[1723823133932,0.05591866,137.84,137.82,0.05280515]
[1723823134431,5.59099867,137.83,137.82,0.05280515]
[1723823135236,0.05591866,137.84,137.82,0.05280515]
[1723823135437,5.59000792,137.83,137.82,0.05280515]
[1723823136326,8.25090792,137.83,137.82,0.05280515]
[1723823136533,8.25090792,137.83,137.75,43.57]
[1723823136735,8.31410792,137.82,137.75,43.57]
[1723823136941,5.59000792,137.81,137.75,43.57]
[1723823137236,2.7241,137.82,137.75,43.57]
[1723823137529,5.58692575,137.81,137.75,43.57]
[1723823137729,0.05182264,137.8,137.77,0.04982291]
[1723823138730,3.72087671,137.8,137.77,0.04982291]
[1723823138939,0.05182264,137.8,137.77,0.04982291]
[1723823139434,3.61092484,137.8,137.77,0.04982291]
[1723823141339,5.58923307,137.79,137.77,0.04982291]
[1723823141530,3.61092484,137.8,137.77,0.04982291]
[1723823141831,5.58917787,137.79,137.77,0.04982291]
[1723823142030,3.61092484,137.8,137.77,0.04982291]
[1723823142229,5.58921931,137.79,137.77,0.04982291]
[1723823142432,5.58921931,137.78,137.77,0.04982291]
[1723823147040,0.05182264,137.8,137.77,43.61982291]
[1723823147741,9.58263242,137.85,137.79,43.57]
[1723823147942,5.58965429,137.84,137.79,43.57]
[1723823148133,5.58965429,137.83,137.79,47.1977]
[1723823148450,3.70298983,137.86,137.79,43.57]
[1723823148644,15.17455674,137.85,137.79,43.57]
[1723823148945,5.64055273,137.84,137.81,0.05582492]
[1723823149131,5.59018196,137.83,137.81,0.05481579]
[1723823149336,5.59018196,137.82,137.81,0.05481579]
[1723823151444,5.58517851,137.82,137.81,0.05481579]
[1723823153047,5.5849792,137.82,137.81,0.05481579]
[1723823154147,15.16038183,137.82,137.81,0.05481579]
[1723823154350,5.5849792,137.82,137.81,0.05481579]
[1723823154544,15.16038183,137.82,137.81,0.05481579]
[1723823154750,5.5849792,137.82,137.81,0.05481579]
[1723823155147,15.16038183,137.82,137.81,0.05481579]
[1723823155450,5.5849792,137.82,137.81,0.05481579]
[1723823155653,15.16038183,137.82,137.81,0.05481579]
[1723823155847,5.5849792,137.82,137.81,0.05481579]
[1723823156047,15.16038183,137.82,137.81,0.05481579]
[1723823156246,5.5849792,137.82,137.75,47.1987]
[1723823156549,5.5849792,137.82,137.75,43.57]
[1723823156550,5.58699887,137.81,137.75,43.57]
[1723823156744,5.58699887,137.8,137.75,43.57]
[1723823156940,5.58699887,137.79,137.75,43.57]
[1723823157251,15.85876477,137.82,137.76,0.0490194]
[1723823157252,5.63542832,137.78,137.76,0.0490194]
[1723823157452,5.58690167,137.77,137.76,0.0490194]
[1723823160354,9.28669883,137.77,137.69,43.57]
[1723823160663,5.58690167,137.76,137.69,43.57]
[1723823160956,5.58690167,137.75,137.69,43.57]
[1723823161249,5.58690167,137.74,137.69,43.57]
[1723823161457,9.57876477,137.76,137.69,43.57]
[1723823161643,0.05224364,137.73,137.7,0.04597624]
[1723823162566,5.59031597,137.72,137.7,0.04597624]
[1723823162853,5.59031597,137.72,137.5,7.58311739]
[1723823162854,21.44908074,137.71,137.62,43.57]
[1723823163048,15.16908074,137.7,137.62,43.57]
[1723823163250,5.59031597,137.69,137.62,43.57]
[1723823163453,15.5447915,137.68,137.62,43.57]
[1723823163743,5.59031597,137.67,137.62,43.57]
[1723823163947,3.67447553,137.68,137.62,43.57]
[1723823164153,0.05073389,137.66,137.64,0.05289776]
[1723823165256,6.28,137.65,137.64,0.05289776]
[1723823166753,9.9115,137.65,137.64,0.05289776]
[1723823167448,9.9115,137.65,137.55,43.57]
[1723823167449,6.28,137.65,137.55,43.57]
[1723823167648,2.5958,137.64,137.55,43.57]
[1723823167849,46.1658,137.64,137.53,43.57]
[1723823168059,43.57,137.62,137.53,43.57]
[1723823168356,43.57,137.62,137.51,43.57]
[1723823168357,3.6337,137.57,137.51,43.57]
[1723823168551,0.05497455,137.59,137.56,0.05484068]
[1723823168956,6.28,137.58,137.53,43.57]
[1723823169258,6.28,137.58,137.53,47.2045]
[1723823169464,0.05476854,137.59,137.56,0.0528232]
[1723823169653,6.28,137.57,137.56,0.0528232]
[1723823170070,9.9136,137.57,137.56,0.0528232]
[1723823170465,3.635,137.52,137.44,3.64797778]
[1723823170664,6.28,137.57,137.44,43.57]
[1723823170665,43.57,137.56,137.44,43.57]
[1723823170886,46.3304,137.56,137.44,43.57]
[1723823171065,3.6353,137.51,137.44,43.57]
[1723823171360,6.28,137.5,137.44,43.57]
[1723823171550,9.9155,137.5,137.45,3.6366]
[1723823171864,3.60303611,137.49,137.46,0.05072835]
[1723823172065,43.61618043,137.49,137.46,0.05072835]
[1723823172356,3.6362,137.47,137.46,0.05072835]
[1723823173065,47.23592175,137.49,137.38,43.57]
[1723823173364,43.57,137.47,137.36,43.57]
[1723823173559,43.57,137.45,137.34,43.57]
[1723823173755,6.28,137.44,137.34,43.57]
[1723823173957,6.28,137.43,137.34,43.57]
[1723823174154,72.63,137.45,137.34,43.57]
[1723823174668,43.57,137.43,137.32,43.57]
[1723823174860,0.05153484,137.4,137.38,0.05263414]
[1723823175055,6.28,137.39,137.29,43.57]
[1723823175257,6.28,137.39,137.3,3.6406]
[1723823175456,6.36999052,137.4,137.31,43.57]
[1723823175757,6.28,137.39,137.25,0.3681]
[1723823175958,6.28,137.39,137.3,43.57]
[1723823176155,0.05359079,137.33,137.31,3.69177663]
[1723823176461,6.28,137.39,137.31,3.69177663]
[1723823176662,0.05118704,137.33,137.31,3.69177663]
[1723823176862,0.05348393,137.33,137.31,3.69177663]
[1723823177062,0.05348393,137.33,137.32,3.6402]
[1723823177257,6.26,137.37,137.32,43.57]
[1723823177453,43.57,137.43,137.32,43.57]
[1723823177661,6.26,137.38,137.34,3.6395]
[1723823178361,0.04991367,137.37,137.35,0.04999501]
[1723823178861,0.04991367,137.37,137.36,3.6391]
[1723823179058,230.0,137.45,137.36,43.57]
[1723823179261,6.28,137.43,137.39,43.57]
[1723823179461,9.9169,137.45,137.4,3.638]
[1723823180171,0.05155983,137.44,137.41,0.04634239]
[1723823181668,0.05155983,137.44,137.41,3.68414239]
[1723823181869,0.05155983,137.44,137.43,43.57]
[1723823182168,0.05155983,137.44,137.41,0.04634239]
[1723823182765,0.05155983,137.44,137.42,3.6374]
[1723823184668,0.05155983,137.44,137.41,0.04634239]
[1723823185162,3.71641366,137.5,137.41,0.04634239]
[1723823185361,11.5793,137.52,137.41,0.04634239]
[1723823185563,3.6361,137.48,137.43,3.6371]
[1723823186062,15.21751549,137.52,137.4,43.57]
[1723823186370,0.04704431,137.47,137.44,0.04701697]
[1723823187662,3.63821549,137.52,137.44,43.61701697]
[1723823187862,6.28,137.53,137.45,3.62439441]
[1723823188060,3.6351,137.52,137.47,3.6361]
[1723823188868,0.04794798,137.51,137.48,0.05498435]
[1723823189771,0.04794798,137.51,137.48,3.69088435]
[1723823190070,0.04794798,137.51,137.48,0.05498435]
[1723823190467,29.08,137.6,137.49,43.57]
[1723823190686,3.61856383,137.61,137.52,43.57]
[1723823190866,6.28,137.62,137.52,43.57]
[1723823191063,14.2567,137.66,137.55,43.57]
[1723823191266,3.6316,137.65,137.6,3.6328]
[1723823191575,11.728,137.66,137.59,43.57]
[1723823191766,0.05361204,137.64,137.61,0.05565741]
[1723823192272,43.62361204,137.64,137.61,0.05565741]
[1723823192469,3.6323,137.62,137.61,0.05565741]
[1723823193264,3.6327,137.61,137.53,43.57]
[1723823193567,5.448,137.66,137.57,43.57]
[1723823194165,5.448,137.66,137.58,3.6331]
[1723823194496,0.04605454,137.63,137.6,0.05231218]
[1723823194965,3.6325,137.61,137.6,0.05231218]
[1723823195163,43.57,137.61,137.5,49.85]
[1723823195365,3.6331,137.59,137.5,49.85]
[1723823196167,0.05394383,137.56,137.53,0.05458134]
[1723823198171,43.62394383,137.56,137.53,0.05458134]
[1723823198373,3.6344,137.54,137.53,0.05458134]
[1723823200080,0.05394383,137.56,137.53,0.05458134]
[1723823200765,0.05394383,137.56,137.54,3.6342]
[1723823200968,0.05394383,137.56,137.53,0.05458134]
[1723823201370,0.05394383,137.56,137.54,3.6342]
[1723823202491,0.05394383,137.56,137.53,3.68918134]
[1723823203373,0.05394383,137.56,137.53,0.05458134]
[1723823203573,43.62394383,137.56,137.53,0.05458134]
[1723823203773,43.57,137.55,137.45,43.57]
[1723823203974,2.7735,137.54,137.45,43.57]
[1723823204171,9.0335,137.54,137.45,43.57]
[1723823204670,9.0335,137.54,137.47,3.6361]
[1723823204865,9.0335,137.54,137.49,0.05547023]
[1723823205067,0.05465951,137.52,137.49,0.05547023]
[1723823205764,0.05465951,137.52,137.51,3.6352]
[1723823206475,0.05465951,137.52,137.5,3.6353]
[1723823206676,0.05465951,137.52,137.49,0.05547023]
[1723823206977,0.05465951,137.52,137.51,3.6352]
[1723823207171,0.05465951,137.52,137.49,0.05547023]
[1723823207575,0.05465951,137.52,137.51,3.6352]
[1723823209581,3.6336,137.57,137.54,3.6344]
[1723823209879,6.26,137.59,137.51,43.57]
[1723823210172,49.83,137.59,137.49,43.57]
[1723823210402,49.83,137.59,137.48,6.26]
[1723823210578,3.6343,137.55,137.52,0.05243913]
[1723823210770,0.05446904,137.55,137.52,0.05243913]
[1723823211171,3.68856904,137.55,137.52,0.05243913]
[1723823211979,0.05446904,137.55,137.52,0.05243913]
[1723823212278,43.62446904,137.55,137.44,6.26]
[1723823212472,3.6357,137.5,137.42,43.57]
[1723823212983,3.6359,137.49,137.45,3.6366]
[1723823213476,3.6359,137.49,137.42,43.57]
[1723823214072,0.05373084,137.48,137.46,0.05327299]
[1723823215381,3.6362,137.47,137.46,0.05327299]
[1723823216683,43.62373084,137.48,137.36,44.0031]
[1723823216981,43.57,137.46,137.39,3.6382]
[1723823217176,47.15702983,137.46,137.39,3.6382]
[1723823217483,49.75622983,137.46,137.38,3.6385]
[1723823217683,43.57,137.44,137.34,43.57]
[1723823217879,43.57,137.44,137.41,0.05233645]
[1723823217880,6.31238064,137.43,137.41,0.05233645]
[1723823218080,6.31238064,137.43,137.36,3.639]
[1723823218383,6.31238064,137.43,137.31,44.0603]
[1723823218384,3.638,137.41,137.31,44.0603]
[1723823218576,0.04989664,137.41,137.38,0.05244685]
[1723823218778,6.26,137.43,137.38,0.05486234]
[1723823218982,0.05541706,137.41,137.38,0.05486234]
[1723823219286,0.05541706,137.41,137.4,3.6381]
[1723823220677,0.05541706,137.41,137.38,43.62486234]
[1723823220678,0.05541706,137.41,137.38,0.05486234]
[1723823222279,3.69341706,137.41,137.38,3.69326234]
[1723823222682,0.05541706,137.41,137.38,0.05486234]
[1723823222887,3.6381,137.4,137.38,0.05486234]
[1723823223188,0.05541706,137.41,137.38,0.05486234]
[1723823223580,3.69341706,137.41,137.38,3.69336234]
[1723823223781,0.05541706,137.41,137.38,0.05486234]
[1723823224079,0.05541706,137.41,137.33,6.26]
[1723823224080,52.5104,137.4,137.3,43.57]
[1723823224285,2.6016,137.39,137.3,43.57]
[1723823224681,2.6016,137.39,137.27,6.26]
[1723823224682,6.22278245,137.39,137.28,43.57]
[1723823224886,2.6016,137.39,137.28,47.22319934]
[1723823225183,43.57,137.37,137.27,6.26]
[1723823225384,43.61634924,137.35,137.32,0.04756794]
[1723823225682,43.57,137.33,137.2,43.57]
[1723823225887,43.57,137.33,137.11,51.17485356]
[1723823225888,43.57,137.31,137.18,43.57]
[1723823226082,43.57,137.29,137.18,43.57]
[1723823226282,6.26,137.28,137.18,47.25107435]
[1723823226586,6.26,137.28,137.2,43.57]
[1723823226787,3.6415,137.27,137.2,43.57]
[1723823227083,9.95891184,137.28,137.18,43.57]
[1723823227291,0.04918303,137.24,137.22,0.05089795]
[1723823227884,3.6426,137.23,137.22,0.05089795]
[1723823228198,0.04918303,137.24,137.22,0.05089795]
[1723823228490,3.69168303,137.24,137.22,0.05089795]
[1723823228788,0.04918303,137.24,137.22,0.05089795]
[1723823228990,0.04918303,137.24,137.23,3.6426]
[1723823229986,6.26,137.33,137.22,3.58971262]
[1723823230190,6.26,137.33,137.24,43.57]
[1723823230491,3.6405,137.31,137.27,3.6414]
[1723823230787,6.26,137.33,137.24,43.57]
[1723823230988,3.69313667,137.3,137.28,0.04710055]
[1723823231185,0.05233667,137.3,137.28,0.04710055]
[1723823231690,0.05233667,137.3,137.28,3.68830055]
[1723823231889,0.05233667,137.3,137.28,0.04710055]
[1723823233312,0.05233667,137.3,137.29,3.641]
[1723823233816,3.60250284,137.39,137.31,3.6404]
[1723823233817,3.6394,137.35,137.31,3.6404]
[1723823233993,3.6394,137.35,137.28,43.61710055]
[1723823234292,43.57,137.4,137.37,3.6389]
[1723823234293,3.6381,137.4,137.37,3.6389]
[1723823234595,14.2048,137.42,137.32,43.57]
[1723823234782,3.6383,137.39,137.35,3.6393]
[1723823234987,57.7748,137.42,137.32,43.57]
[1723823235280,0.05199282,137.36,137.34,0.05571941]
[1723823235482,0.05199282,137.36,137.35,3.6394]
[1723823235885,61.44684782,137.42,137.34,3.69531941]
[1723823236092,61.44684782,137.42,137.34,0.05571941]
[1723823236294,0.04918717,137.37,137.34,0.05571941]
[1723823236688,0.04918717,137.37,137.34,3.69541941]
[1723823237390,0.04918717,137.37,137.34,0.05571941]
[1723823237894,6.26,137.42,137.34,43.62571941]
[1723823238097,49.83,137.46,137.34,49.88571941]
[1723823238301,3.6387,137.38,137.29,3.71285658]
[1723823238598,9.95902708,137.41,137.28,6.26]
[1723823238791,43.57,137.38,137.28,6.26]
[1723823238989,43.57,137.36,137.3,3.6406]
[1723823239187,0.05178439,137.34,137.32,0.04903415]
[1723823239400,3.6402,137.33,137.32,0.04903415]
[1723823239594,43.62178439,137.34,137.26,3.6417]
[1723823239795,2.6989,137.33,137.26,3.6417]
[1723823239999,3.6403,137.32,137.23,43.57]
[1723823240709,0.0549179,137.29,137.27,3.6413]
[1723823240891,0.0549179,137.29,137.26,0.04961902]
[1723823242085,0.0549179,137.29,137.28,3.6413]
[1723823242896,49.83,137.38,137.27,43.57]
[1723823243193,49.83,137.38,137.29,43.57]
[1723823243394,3.6396,137.35,137.31,3.6404]
[1723823244096,0.04927052,137.34,137.32,3.68843251]
[1723823244594,0.04927052,137.34,137.32,0.04823251]
[1723823244797,11.6382,137.4,137.32,0.04823251]
[1723823245106,3.6387,137.38,137.32,0.04823251]
[1723823245295,11.6382,137.4,137.32,0.04823251]
[1723823245493,6.26,137.4,137.33,43.57]
[1723823245695,6.3008,137.44,137.35,43.57]
[1723823246013,79.63262089,137.45,137.38,43.57]
[1723823246197,73.37262089,137.45,137.38,43.57]
[1723823246413,73.37262089,137.45,137.38,43.62185417]
[1723823246701,0.04608614,137.43,137.39,3.6383]
[1723823246890,0.04608614,137.43,137.38,0.05185417]
[1723823247292,0.04608614,137.43,137.41,3.6376]
[1723823247489,0.04608614,137.43,137.38,43.62185417]
[1723823248193,0.04608614,137.43,137.38,0.05185417]
[1723823248603,0.04608614,137.43,137.38,3.60166823]
[1723823248803,0.04608614,137.43,137.38,0.05185417]
[1723823249008,3.68338614,137.43,137.4,3.6379]
[1723823249199,0.04608614,137.43,137.38,0.05185417]
[1723823249507,3.6377,137.42,137.38,3.69025417]
[1723823249696,0.04608614,137.43,137.38,0.05185417]
[1723823249897,3.68348614,137.43,137.4,3.6379]
[1723823250505,0.04608614,137.43,137.38,0.05185417]
[1723823250903,0.04608614,137.43,137.38,3.69035417]
[1723823251108,0.04608614,137.43,137.38,0.05185417]
[1723823251700,3.638,137.41,137.38,3.69045417]
[1723823251907,0.04608614,137.43,137.38,0.05185417]
[1723823252402,43.57,137.42,137.38,0.05185417]
[1723823252611,3.6383,137.39,137.38,0.05185417]
[1723823254796,6.45879147,137.4,137.38,0.05185417]
[1723823255805,3.6383,137.39,137.38,0.05185417]
[1723823255999,49.96251214,137.4,137.32,3.64]
[1723823256200,2.7677,137.4,137.31,43.57]
[1723823256699,3.6388,137.38,137.33,3.6398]
[1723823256900,2.7677,137.4,137.29,53.3965622]
[1723823257100,2.7677,137.4,137.33,3.6398]
[1723823257400,0.04996522,137.37,137.34,0.05134596]
[1723823257596,0.04996522,137.37,137.35,3.6394]
[1723823257805,0.04996522,137.37,137.34,0.05134596]
[1723823258198,0.04996522,137.37,137.34,3.69084596]
[1723823258419,0.04996522,137.37,137.34,0.05134596]
[1723823260311,0.04996522,137.37,137.35,3.6393]
[1723823260703,0.04996522,137.37,137.34,0.05134596]
[1723823261104,49.87996522,137.37,137.34,0.05134596]
[1723823261308,3.6394,137.35,137.34,0.05134596]
[1723823261804,3.6399,137.34,137.27,43.57]
[1723823262014,49.83,137.37,137.25,6.6462]
[1723823262404,49.83,137.37,137.26,43.57]
[1723823262604,6.26,137.37,137.26,43.57]
[1723823263013,0.04712723,137.33,137.3,3.68747687]
[1723823263313,0.04712723,137.33,137.3,3.75691052]
[1723823263607,0.04712723,137.33,137.32,3.6402]
[1723823264905,0.04712723,137.33,137.31,3.62001572]
[1723823265109,0.04712723,137.33,137.3,0.04697687]
[1723823265911,3.6402,137.32,137.3,0.04697687]
[1723823266113,0.04712723,137.33,137.3,0.04697687]
[1723823266415,3.6405,137.31,137.3,0.04697687]
[1723823267708,9.08092723,137.33,137.3,0.04697687]
[1723823268106,6.30712723,137.33,137.3,0.04697687]
[1723823268502,0.04712723,137.33,137.3,0.04697687]
[1723823268707,0.04712723,137.33,137.32,3.6402]
[1723823270112,0.04712723,137.33,137.3,0.04697687]
[1723823271011,3.68712723,137.33,137.3,0.04697687]
[1723823271210,0.04712723,137.33,137.3,0.04697687]
[1723823271619,0.04712723,137.33,137.3,3.68757687]
[1723823271910,0.04712723,137.33,137.3,0.04697687]
[1723823272315,0.04712723,137.33,137.3,43.61697687]
[1723823272717,0.04712723,137.33,137.32,3.6402]
[1723823273404,3.6384,137.39,137.36,3.639]
[1723823273808,11.603,137.42,137.32,43.57]
[1723823274111,43.57,137.41,137.3,43.57]
[1723823274422,11.603,137.42,137.3,43.57]
[1723823274423,3.6399,137.34,137.3,3.6405]
[1723823274809,0.05452267,137.33,137.31,0.04870287]
[1723823275123,0.05452267,137.33,137.31,3.68900287]
[1723823275715,0.05452267,137.33,137.32,3.6402]
[1723823276111,0.05452267,137.33,137.32,47.2102]
[1723823276309,3.6386,137.38,137.35,3.6393]
[1723823276513,3.6386,137.38,137.32,43.57]
[1723823277016,3.6389,137.37,137.34,3.6395]
[1723823277417,6.26,137.4,137.34,0.05003486]
[1723823277619,0.04794692,137.37,137.34,3.68953486]
[1723823277920,0.04794692,137.37,137.34,0.05003486]
[1723823278538,0.04794692,137.37,137.36,3.6391]
[1723823279424,2.5538,137.42,137.36,47.18912654]
[1723823279625,2.5821,137.43,137.36,47.18912654]
[1723823279823,2.5821,137.43,137.34,43.57]
[1723823280017,2.5821,137.43,137.37,3.6386]
[1723823280322,6.1823011,137.43,137.32,43.57]
[1723823280525,0.05141677,137.39,137.36,0.0463538]
[1723823280916,3.6388,137.38,137.36,0.0463538]
[1723823281225,0.05141677,137.39,137.36,0.0463538]
[1723823281727,3.6386,137.38,137.36,0.0463538]
[1723823282016,0.05141677,137.39,137.36,0.0463538]
[1723823282420,0.05141677,137.39,137.36,47.18909571]
[1723823282721,0.05141677,137.39,137.38,47.2086]
[1723823282921,0.05141677,137.39,137.38,3.6386]
[1723823285631,0.05141677,137.39,137.37,3.6388]
[1723823285816,0.05141677,137.39,137.36,0.0463538]
[1723823286016,3.68991677,137.39,137.36,0.0463538]
[1723823286331,0.05141677,137.39,137.36,0.0463538]
[1723823286721,3.6388,137.38,137.36,0.0463538]
[1723823287130,3.6389,137.37,137.36,0.0463538]
[1723823288628,5.1592,137.38,137.32,3.6402]
[1723823288629,3.6393,137.36,137.32,3.6402]
[1723823289021,5.1592,137.38,137.33,3.6399]
[1723823289225,3.639,137.37,137.33,3.6399]
[1723823289423,5.1592,137.38,137.33,3.6399]
[1723823289628,5.1592,137.38,137.32,3.64]
[1723823289833,0.050793,137.37,137.34,0.04811592]
[1723823290737,0.050793,137.37,137.34,3.68761592]
[1723823291131,0.050793,137.37,137.35,3.6393]
[1723823292040,0.050793,137.37,137.36,3.6391]
[1723823292742,0.050793,137.37,137.35,3.6393]
[1723823292942,0.050793,137.37,137.34,0.04811592]
[1723823293537,3.6394,137.35,137.34,0.04811592]
[1723823295033,3.6394,137.35,137.27,50.1655]
[1723823295034,53.45412178,137.35,137.27,6.26]
[1723823295336,5.56660463,137.34,137.23,43.57]
[1723823295538,5.56660463,137.33,137.23,43.57]
[1723823295739,3.6409,137.3,137.23,43.57]
[1723823296038,2.7591,137.32,137.23,43.57]
[1723823296438,0.04725516,137.28,137.25,3.69533841]
[1723823296842,0.04725516,137.28,137.27,47.2115]
[1723823297041,6.24,137.33,137.27,43.57]
[1723823297531,6.24,137.33,137.28,3.6412]
[1723823297738,6.24,137.33,137.27,43.57]
[1723823298142,0.04814465,137.31,137.29,3.69030921]
[1723823298338,0.04814465,137.31,137.29,47.22637801]
[1723823298745,0.04814465,137.31,137.3,3.6407]
[1723823299940,3.68864465,137.31,137.29,0.04950921]
[1723823300239,0.04814465,137.31,137.29,0.04950921]
[1723823300446,3.6407,137.3,137.29,0.04950921]
[1723823302947,9.2035855,137.3,137.29,0.04950921]
[1723823303152,3.6407,137.3,137.29,0.04950921]
[1723823306046,0.04814465,137.31,137.29,0.04950921]
[1723823306638,0.04814465,137.31,137.29,3.70444532]
[1723823306840,0.04814465,137.31,137.3,3.6407]
[1723823307448,3.639,137.37,137.33,3.6398]
[1723823307751,5.56334333,137.36,137.29,47.22493611]
[1723823308051,3.6398,137.34,137.3,3.6406]
[1723823308749,3.6955716,137.33,137.31,0.04841321]
[1723823308968,3.64,137.33,137.31,0.04841321]
[1723823309243,3.6402,137.32,137.31,0.04841321]
[1723823310046,9.20051885,137.32,137.31,0.04841321]
[1723823311349,5.56031885,137.32,137.04,43.57]
[1723823311539,43.57,137.3,137.18,43.57]
[1723823311745,5.56368955,137.29,137.18,43.57]
[1723823311945,3.6417,137.27,137.23,3.6425]
[1723823312246,6.24,137.28,137.18,43.57]
[1723823312550,3.6421,137.25,137.24,0.05171486]
[1723823313248,0.05495012,137.26,137.24,0.05171486]
[1723823313846,3.6421,137.25,137.24,0.05171486]
[1723823314050,0.05495012,137.26,137.16,47.24651708]
[1723823314555,5.541,137.27,137.18,43.57]
[1723823314852,3.6423,137.25,137.18,43.57]
[1723823315249,5.541,137.27,137.2,3.6431]
[1723823315452,0.05509098,137.23,137.2,0.05428635]
[1723823315755,0.05509098,137.23,137.22,3.6429]
[1723823316555,0.05509098,137.23,137.2,43.62428635]
[1723823316556,0.05509098,137.23,137.2,0.05428635]
[1723823317753,0.05509098,137.23,137.21,3.643]
[1723823318152,0.05509098,137.23,137.2,0.05428635]
[1723823318355,0.05509098,137.23,137.21,3.6431]
[1723823318556,0.05509098,137.23,137.2,0.05428635]
[1723823318949,0.05509098,137.23,137.22,3.6429]
[1723823319262,0.05509098,137.23,137.2,0.05428635]
[1723823319456,0.05509098,137.23,137.21,3.6429]
[1723823319750,0.05509098,137.23,137.2,0.05428635]
[1723823319751,7.33009098,137.23,137.2,0.05428635]
[1723823319950,3.6436,137.19,137.14,3.6448]
[1723823320257,43.57,137.22,137.12,47.2911015]
[1723823320258,53.5666,137.22,137.12,47.2911015]
[1723823320658,3.6436,137.19,137.14,3.6449]
[1723823320978,53.5666,137.22,137.12,43.57]
[1723823321160,53.5666,137.22,137.09,6.6833]
[1723823321354,53.5666,137.22,136.98,258.77914694]
[1723823321355,43.57,137.17,137.15,0.05470954]
[1723823321654,8.9874,137.16,137.15,0.05470954]
[1723823321959,6.24,137.16,137.1,47.25904816]
[1723823322158,0.04604282,137.17,137.14,0.04620351]
[1723823322654,0.04604282,137.17,137.14,43.61620351]
[1723823322855,0.04604282,137.17,137.15,3.6445]
[1723823323158,0.04604282,137.17,137.14,0.04620351]
[1723823323755,3.69044282,137.17,137.14,0.04620351]
[1723823323955,0.04604282,137.17,137.14,0.04620351]
[1723823324464,3.6446,137.16,137.14,0.04620351]
[1723823324758,0.04604282,137.17,137.14,0.04620351]
[1723823326151,0.04604282,137.17,137.15,3.6445]
[1723823326662,0.04604282,137.17,137.16,47.2144]
[1723823326863,35.38,137.25,137.16,43.57]
[1723823327157,6.24,137.25,137.17,3.61267675]
[1723823327551,43.57,137.24,137.14,43.57]
[1723823327958,6.24,137.25,137.14,43.57]
[1723823328677,0.04866547,137.2,137.18,0.04586075]
[1723823328962,0.04866547,137.2,137.18,3.68956075]
[1723823329166,6.24,137.25,137.18,0.04586075]
[1723823329365,0.04634828,137.2,137.18,47.3094428]
[1723823329566,57.454,137.28,137.18,43.61586075]
[1723823329763,13.884,137.28,137.18,43.57]
[1723823329960,3.6423,137.25,137.18,43.57]
[1723823330263,13.884,137.28,137.18,47.27697795]
[1723823330459,3.6418,137.26,137.22,3.6427]
[1723823330656,0.04590645,137.25,137.23,0.05213093]
[1723823331465,3.68810645,137.25,137.23,0.05213093]
[1723823332160,0.04590645,137.25,137.23,0.05213093]
[1723823333458,0.04590645,137.25,137.23,3.69473093]
[1723823333661,0.04590645,137.25,137.23,0.05213093]
[1723823334968,0.04590645,137.25,137.23,3.69463093]
[1723823335863,0.04590645,137.25,137.24,3.6423]
[1723823336868,0.04590645,137.25,137.23,3.69463093]
[1723823337060,0.04590645,137.25,137.23,0.05213093]
[1723823338466,3.68800645,137.25,137.23,0.05213093]
[1723823338764,0.04590645,137.25,137.23,0.05213093]
[1723823340864,0.04590645,137.25,137.24,3.6423]
[1723823341362,5.1698,137.33,137.23,43.62213093]
[1723823341559,5.1698,137.33,137.25,43.57]
[1723823341760,3.6405,137.31,137.25,43.57]
[1723823341965,5.1698,137.33,137.28,3.6412]